bitfinex-derivatives/quotes_SOLF0:USTF0_20251125
["timestamp","ask_amount","ask_price","bid_price","bid_amount"]
[1764088058937,3.18304995,136.15,136.12,0.05505922]
[1764088060542,3.13,136.13,136.12,0.05505922]
[1764088061329,3.18304995,136.15,136.12,0.05505922]
[1764088062535,3.18304995,136.15,136.12,6.67045922]
[1764088063337,3.18304995,136.15,136.12,0.05505922]
[1764088064841,3.13,136.14,136.12,0.05505922]
[1764088065341,9.7446,136.14,136.12,0.05505922]
[1764088065546,3.13,136.13,136.12,0.05505922]
[1764088066444,0.05304995,136.15,136.12,3.14505922]
[1764088066645,3.18304995,136.15,136.12,0.05505922]
[1764088067950,9.5763,136.11,136.02,3.14]
[1764088068140,2.96,136.15,136.05,3.14]
[1764088068542,6.6154,136.13,136.05,3.14]
[1764088068742,2.96,136.15,136.08,3.14]
[1764088068952,2.96,136.15,136.08,3.19044668]
[1764088069249,0.04938988,136.13,136.1,3.14]
[1764088069451,0.04938988,136.13,136.1,3.19529174]
[1764088070853,0.04938988,136.13,136.1,65.19529174]
[1764088071347,0.04938988,136.13,136.11,3.14]
[1764088073052,2.96,136.17,136.11,3.14]
[1764088074044,0.05147779,136.15,136.11,3.14]
[1764088074256,6.6147,136.14,136.11,3.14]
[1764088074451,0.05147779,136.15,136.11,3.14]
[1764088075062,3.01147779,136.15,136.11,3.14]
[1764088075564,6.6147,136.14,136.11,3.14]
[1764088076366,3.01147779,136.15,136.11,3.14]
[1764088076560,3.01147779,136.15,136.12,3.14]
[1764088076861,0.05147779,136.15,136.12,3.14]
[1764088077053,102.8264,136.23,136.12,3.14]
[1764088077054,2.96,136.2,136.14,3.14]
[1764088077251,2.96,136.2,136.16,3.14]
[1764088078055,2.96,136.2,136.17,0.05538596]
[1764088078256,6.6124,136.19,136.17,0.05538596]
[1764088079662,9.6624,136.19,136.17,0.05538596]
[1764088080161,3.05,136.18,136.17,0.05538596]
[1764088082568,3.05,136.17,136.12,3.19]
[1764088082867,3.05,136.16,136.11,28.55]
[1764088083368,3.0978318,136.15,136.12,3.23840849]
[1764088083570,0.0478318,136.15,136.12,3.23840849]
[1764088084067,3.0978318,136.15,136.12,0.04840849]
[1764088084262,0.0478318,136.15,136.12,3.23840849]
[1764088085268,3.0978318,136.15,136.12,0.04840849]
[1764088085864,6.6146,136.14,136.12,0.04840849]
[1764088086167,9.6646,136.14,136.12,0.04840849]
[1764088086868,0.0478318,136.15,136.12,3.23840849]
[1764088088264,0.0478318,136.15,136.12,9.85380849]
[1764088088469,0.0478318,136.15,136.13,3.19]
[1764088090074,0.0478318,136.15,136.14,3.19]
[1764088092672,105.8715,136.24,136.15,3.19]
[1764088093070,6.6113,136.21,136.15,3.19]
[1764088093272,3.05,136.23,136.17,3.19]
[1764088093668,3.05,136.23,136.19,0.05173447]
[1764088094067,3.05,136.23,136.19,3.24173447]
[1764088095674,3.05,136.23,136.19,0.05173447]
[1764088096480,3.05,136.23,136.19,3.24173447]
[1764088096976,3.05,136.27,136.19,3.24173447]
[1764088097875,3.05,136.27,136.2,3.12]
[1764088098076,3.05,136.27,136.22,0.05348197]
[1764088098267,6.6088,136.26,136.22,0.05348197]
[1764088098473,3.16,136.25,136.22,0.05348197]
[1764088098669,3.16,136.24,136.22,0.05348197]
[1764088099874,12.48449648,136.25,136.22,0.05348197]
[1764088100174,3.16,136.24,136.22,0.05348197]
[1764088100575,9.7698,136.24,136.22,0.05348197]
[1764088100878,3.16,136.21,136.13,3.12]
[1764088101176,2.71519648,136.16,136.1,3.12]
[1764088101574,3.16,136.14,136.1,3.12]
[1764088101778,0.05353762,136.13,136.11,0.05551772]
[1764088101975,3.21353762,136.13,136.11,0.05551772]
[1764088102572,9.82893762,136.13,136.11,0.05551772]
[1764088102780,3.16,136.12,136.11,0.05551772]
[1764088102970,0.05353762,136.13,136.11,0.05551772]
[1764088103677,0.05353762,136.13,136.11,3.17551772]
[1764088103877,0.05353762,136.13,136.11,65.17551772]
[1764088104481,0.05353762,136.13,136.12,3.12]
[1764088104883,3.16,136.2,136.13,3.12]
[1764088105679,106.0123,136.2,136.13,3.12]
[1764088105877,3.16,136.2,136.15,0.04677037]
[1764088106271,9.7727,136.18,136.15,0.04677037]
[1764088106581,3.16,136.17,136.15,0.04677037]
[1764088106983,9.7733,136.17,136.15,0.04677037]
[1764088107171,3.16,136.16,136.15,0.04677037]
[1764088108277,9.7733,136.17,136.15,0.04677037]
[1764088109678,3.16,136.22,136.15,3.16677037]
[1764088109879,3.16,136.21,136.15,3.16677037]
[1764088110074,6.6127,136.18,136.15,0.04677037]
[1764088110285,9.7727,136.18,136.15,0.04677037]
[1764088110878,6.6127,136.18,136.15,3.16677037]
[1764088111075,3.16,136.18,136.15,3.16677037]
[1764088111385,3.16,136.18,136.15,0.04677037]
[1764088112188,9.7728,136.18,136.15,0.04677037]
[1764088112488,3.16,136.17,136.15,0.04677037]
[1764088113380,3.16,136.21,136.15,3.16677037]
[1764088113888,6.6123,136.19,136.15,3.16677037]
[1764088114088,3.16,136.19,136.15,0.04677037]
[1764088115091,3.16,136.16,136.15,0.04677037]
[1764088115387,3.16,136.18,136.15,0.04677037]
[1764088118594,6.6119,136.2,136.16,3.12]
[1764088118788,3.16,136.21,136.16,3.12]
[1764088119085,3.16,136.21,136.17,0.04760163]
[1764088122793,3.16,136.18,136.17,0.04760163]
[1764088123391,3.16,136.18,136.14,6.6142]
[1764088123588,3.16,136.16,136.14,6.6142]
[1764088123788,2.71720489,136.17,136.15,3.12]
[1764088123989,3.16,136.2,136.15,3.12]
[1764088124389,3.21454381,136.19,136.16,0.04682198]
[1764088125185,0.05454381,136.19,136.16,3.16682198]
[1764088125381,3.16,136.26,136.18,105.57820489]
[1764088125589,3.16,136.26,136.2,108.68230489]
[1764088125796,404.55907937,136.34,136.23,3.12]
[1764088125797,3.16,136.28,136.23,3.12]
[1764088125982,3.16,136.32,136.24,105.9358]
[1764088126186,3.16,136.32,136.26,108.63760489]
[1764088126493,3.16,136.32,136.28,0.04957639]
[1764088126690,3.16,136.32,136.28,6.65707639]
[1764088127192,2.9,136.36,136.29,3.12]
[1764088127387,2.9,136.36,136.31,3.17319936]
[1764088127693,27.54,136.39,136.32,6.6055]
[1764088127895,2.9,136.38,136.34,0.05630733]
[1764088129089,2.9,136.37,136.34,0.05630733]
[1764088130192,2.9,136.37,136.29,6.607]
[1764088130499,2.9,136.36,136.29,6.607]
[1764088131085,2.9,136.33,136.31,0.05359155]
[1764088133300,2.9,136.33,136.24,3.12]
[1764088133501,2.9,136.33,136.24,131.2753]
[1764088133896,2.9,136.33,136.27,6.608]
[1764088134288,2.9,136.36,136.29,0.05628749]
[1764088134502,2.9,136.36,136.29,6.66328749]
[1764088134798,0.05594927,136.34,136.29,6.66328749]
[1764088135100,2.9,136.33,136.29,6.66328749]
[1764088136400,2.9,136.33,136.29,0.05628749]
[1764088136901,2.9,136.33,136.29,6.66338749]
[1764088137103,2.9,136.33,136.29,0.05628749]
[1764088137503,2.9,136.32,136.24,25.34]
[1764088137910,2.9,136.29,136.24,25.34]
[1764088138607,2.9,136.27,136.25,0.0506925]
[1764088138900,2.9,136.27,136.19,105.9733]
[1764088139090,2.9,136.27,136.2,62.0]
[1764088139295,2.9,136.27,136.2,164.845]
[1764088139491,2.99,136.3,136.22,102.8303]
[1764088139706,2.99,136.3,136.21,102.8374]
[1764088139896,3.0383864,136.27,136.24,0.04981709]
[1764088140096,3.03687675,136.27,136.24,0.04665634]
[1764088141504,3.03687675,136.27,136.24,6.65615634]
[1764088142104,3.03687675,136.27,136.25,6.6091]
[1764088142705,0.04687675,136.27,136.25,9.7391]
[1764088143205,2.99,136.3,136.28,6.6075]
[1764088143501,2.99,136.3,136.25,3.13]
[1764088143701,2.99,136.3,136.26,6.6084]
[1764088144205,3.0392838,136.29,136.27,0.04957442]
[1764088144400,3.04081006,136.29,136.27,0.04957442]
[1764088144902,0.05081006,136.29,136.27,6.65767442]
[1764088145490,3.04081006,136.29,136.27,6.65767442]
[1764088146104,110.7382,138.18,136.28,105.9176]
[1764088146105,2.99,136.35,136.28,105.9176]
[1764088146493,2.99,136.35,136.3,105.903]
[1764088147196,3.04268074,136.34,136.31,0.04947776]
[1764088147396,3.0422736,136.34,136.31,0.05124564]
[1764088148400,3.0422736,136.34,136.32,6.6057]
[1764088149409,3.0422736,136.34,136.31,0.05124564]
[1764088149896,0.0522736,136.34,136.32,6.6057]
[1764088150303,0.0522736,136.34,136.32,9.7357]
[1764088151201,0.0522736,136.34,136.33,3.13]
[1764088151401,2.99,136.4,136.36,6.6039]
[1764088152508,2.99,136.38,136.37,0.05140104]
[1764088154310,3.04089607,136.39,136.37,0.05140104]
[1764088158612,0.05089607,136.39,136.37,0.05140104]
[1764088159212,0.05089607,136.39,136.37,2.96140104]
[1764088160311,0.12328529,136.43,136.37,2.96140104]
[1764088160612,0.12328529,136.43,136.39,2.91]
[1764088161110,0.12328529,136.43,136.4,64.91]
[1764088161312,0.14710551,136.43,136.41,2.91]
[1764088162616,0.14710551,136.43,136.4,62.05240612]
[1764088163017,0.14710551,136.43,136.4,64.96240612]
[1764088163521,3.07710551,136.43,136.4,0.05240612]
[1764088164815,9.5312,136.42,136.4,0.05240612]
[1764088165118,6.6012,136.42,136.4,0.05240612]
[1764088165517,0.14710551,136.43,136.4,2.96240612]
[1764088166023,3.07710551,136.43,136.4,0.05240612]
[1764088166210,6.6011,136.42,136.4,0.05240612]
[1764088167117,3.07710551,136.43,136.4,2.96240612]
[1764088167118,0.14710551,136.43,136.4,2.96240612]
[1764088170121,3.07710551,136.43,136.4,0.05240612]
[1764088170422,3.07710551,136.43,136.4,2.96240612]
[1764088170720,0.14710551,136.43,136.41,2.91]
[1764088171724,0.14710551,136.43,136.4,2.96240612]
[1764088173023,0.14710551,136.43,136.4,9.56430612]
[1764088173221,0.14710551,136.43,136.4,2.96240612]
[1764088174225,0.14710551,136.43,136.42,2.91]
[1764088175027,0.14710551,136.43,136.41,6.6014]
[1764088175226,0.14710551,136.43,136.41,9.5114]
[1764088175428,0.14710551,136.43,136.42,2.91]
[1764088175923,0.14710551,136.43,136.41,6.6014]
[1764088176127,0.14710551,136.43,136.42,2.91]
[1764088178831,0.14710551,136.43,136.42,28.21]
[1764088181330,2.93,136.52,136.43,2.91]
[1764088182233,2.93,136.52,136.46,0.04761176]
[1764088182428,2.93,136.49,136.46,0.04761176]
[1764088182824,9.5277,136.49,136.46,0.04761176]
[1764088183030,2.93,136.48,136.46,0.04761176]
[1764088186537,2.97761176,136.48,136.41,2.91]
[1764088187038,2.97761176,136.48,136.43,9.5104]
[1764088187230,2.97761176,136.48,136.43,2.91]
[1764088187432,2.97761176,136.48,136.44,0.05274908]
[1764088189539,2.97761176,136.48,136.44,3.17274908]
[1764088191246,2.97761176,136.48,136.44,9.77274908]
[1764088191746,0.04761176,136.48,136.45,3.12]
[1764088194456,0.04761176,136.48,136.46,9.7189]
[1764088196448,3.11,136.55,136.52,3.12]
[1764088196646,5.81209895,136.58,136.52,3.12]
[1764088196947,3.11,136.57,136.54,3.12]
[1764088197143,5.81209895,136.6,136.54,3.12]
[1764088197343,3.11,136.59,136.56,0.04659994]
[1764088197944,5.81209895,136.59,136.56,0.04659994]
[1764088198144,3.11,136.58,136.56,0.04659994]
[1764088198353,3.11,136.58,136.56,0.05313763]
[1764088200356,3.04,136.64,136.56,2.95313763]
[1764088200649,3.04,136.64,136.59,2.95416716]
[1764088200854,3.04,136.64,136.6,2.9]
[1764088201049,3.04,136.64,136.59,102.60366716]
[1764088201050,3.04,136.67,136.62,105.4321]
[1764088201254,5.51948355,136.7,136.63,2.95502918]
[1764088201451,3.04,136.69,136.63,0.05502918]
[1764088201761,3.04,136.68,136.63,0.05502918]
[1764088201953,9.6286,136.68,136.63,0.05502918]
[1764088202154,3.04,136.68,136.63,0.05502918]
[1764088202759,3.04,136.67,136.63,0.05502918]
[1764088204255,3.04,136.64,136.63,0.05502918]
[1764088204754,6.5909,136.63,136.55,15.92657205]
[1764088204957,3.04,136.62,136.56,25.3]
[1764088205157,3.04,136.62,136.57,2.9]
[1764088205752,0.05502918,136.61,136.58,2.95347593]
[1764088207360,0.05502918,136.61,136.58,9.54647593]
[1764088207546,0.05502918,136.61,136.59,2.9]
[1764088207750,0.05502918,136.61,136.6,2.9]
[1764088208359,5.51948355,136.7,136.62,2.9]
[1764088208749,5.51948355,136.7,136.63,34.7906]
[1764088209159,5.51948355,136.7,136.64,2.9]
[1764088209359,3.04,136.69,136.65,2.94939171]
[1764088210153,3.04,136.66,136.58,2.9]
[1764088210354,5.51948355,136.7,136.62,2.9]
[1764088210556,5.51948355,136.7,136.63,2.9]
[1764088210762,5.51948355,136.7,136.65,9.4897]
[1764088210953,5.51948355,136.7,136.65,2.9]
[1764088211155,0.04632774,136.69,136.67,9.4887]
[1764088211457,0.04632774,136.69,136.66,0.05363763]
[1764088211664,0.04632774,136.69,136.66,2.95363763]
[1764088213159,0.04632774,136.69,136.67,2.9]
[1764088213364,0.04632774,136.69,136.66,9.54273763]
[1764088213962,0.04632774,136.69,136.67,2.9]
[1764088214167,0.04632774,136.69,136.67,9.4887]
[1764088214462,3.08632774,136.69,136.66,0.05363763]
[1764088214660,3.04,136.67,136.57,105.4663]
[1764088214851,3.04,136.67,136.57,28.26]
[1764088215256,3.04,136.67,136.57,2.9]
[1764088215455,3.04,136.66,136.57,28.26]
[1764088215655,0.04955721,136.63,136.6,0.05037002]
[1764088215862,3.08955721,136.63,136.6,0.05037002]
[1764088216361,0.04955721,136.63,136.61,9.4916]
[1764088217566,6.5881,136.69,136.63,6.5904]
[1764088217567,3.16,136.69,136.63,6.5904]
[1764088217762,2.47948355,136.7,136.63,3.08]
[1764088218066,3.16,136.69,136.63,3.08]
[1764088218262,6.5885,136.68,136.59,3.08]
[1764088218563,3.16,136.64,136.62,0.05468538]
[1764088219064,3.16,136.63,136.62,0.05468538]
[1764088219252,3.16,136.62,136.55,3.08]
[1764088220070,102.5069,136.66,136.55,3.08]
[1764088220071,3.16,136.66,136.55,105.6616]
[1764088220252,3.16,136.66,136.59,0.05418052]
[1764088220253,0.04933164,136.62,136.59,0.05418052]
[1764088220660,3.20933164,136.62,136.59,0.05418052]
[1764088221958,3.20933164,136.62,136.5,112.13047205]
[1764088222164,3.16,136.62,136.51,25.38]
[1764088222365,3.16,136.6,136.53,3.08]
[1764088222668,3.16,136.6,136.55,3.08]
[1764088222869,3.16,136.6,136.53,105.6757]
[1764088223065,0.05038259,136.58,136.56,3.08]
[1764088223268,0.04783792,136.58,136.56,3.12999166]
[1764088223471,3.16,136.64,136.57,6.5936]
[1764088224471,3.2125848,136.62,136.59,0.04869953]
[1764088224858,3.2125848,136.62,136.53,3.08]
[1764088225060,105.6965,136.62,136.5,105.6997]
[1764088225264,3.16,136.61,136.5,131.0997]
[1764088225461,3.16,136.59,136.48,102.6372]
[1764088226071,3.21353503,136.55,136.52,0.05579209]
[1764088226976,0.05353503,136.55,136.52,3.13579209]
[1764088227269,0.05353503,136.55,136.52,0.05579209]
[1764088227668,3.21353503,136.55,136.52,0.05579209]
[1764088228680,0.05353503,136.55,136.52,0.05579209]
[1764088228977,0.05353503,136.55,136.52,3.13579209]
[1764088229370,3.21353503,136.55,136.52,0.05579209]
[1764088229675,0.05353503,136.55,136.52,0.05579209]
[1764088229884,0.05353503,136.55,136.52,3.13579209]
[1764088230070,3.21353503,136.55,136.52,0.05579209]
[1764088231775,0.05353503,136.55,136.52,3.13579209]
[1764088232167,0.05353503,136.55,136.52,9.73179209]
[1764088232967,0.05353503,136.55,136.52,3.13579209]
[1764088233676,3.16,136.61,136.55,6.5947]
[1764088233983,3.16,136.61,136.53,3.08]
[1764088234278,9.7519,136.61,136.54,6.5951]
[1764088234471,3.16,136.58,136.56,0.04656542]
[1764088235583,3.16,136.57,136.56,0.04656542]
[1764088237770,3.16,136.55,136.49,25.42]
[1764088237975,3.16,136.55,136.48,3.08]
[1764088238179,3.16,136.5,136.46,3.08]
[1764088238583,3.16,136.54,136.46,3.08]
[1764088238783,0.04639709,136.51,136.49,0.0466662]
[1764088239676,0.04639709,136.51,136.49,3.1266662]
[1764088239984,0.04639709,136.51,136.5,3.08]
[1764088240573,3.16,136.56,136.5,3.08]
[1764088240574,3.16,136.56,136.5,9.6768]
[1764088241370,3.16,136.56,136.51,3.08]
[1764088241575,0.05224339,136.54,136.52,3.1360435]
[1764088241775,3.16,136.59,136.52,3.13571278]
[1764088241983,0.04911226,136.57,136.52,3.13571278]
[1764088242175,3.20911226,136.57,136.52,3.13571278]
[1764088243383,3.20911226,136.57,136.53,6.5956]
[1764088243585,3.20911226,136.57,136.53,9.6756]
[1764088243781,0.04911226,136.57,136.54,9.6749]
[1764088243983,0.04911226,136.57,136.54,3.08]
[1764088246491,0.04911226,136.57,136.54,9.6751]
[1764088248082,3.12911226,136.57,136.52,9.77141278]
[1764088248282,3.12911226,136.57,136.52,3.17571278]
[1764088249090,0.04911226,136.57,136.52,3.17571278]
[1764088249296,0.04911226,136.57,136.55,3.12]
[1764088249589,0.04911226,136.57,136.54,6.5951]
[1764088249795,0.04911226,136.57,136.54,9.7151]
[1764088250293,0.04911226,136.57,136.55,6.5946]
[1764088250495,0.04911226,136.57,136.54,3.12]
[1764088250891,3.12911226,136.57,136.53,3.12]
[1764088252089,3.12911226,136.57,136.52,0.05571278]
[1764088252690,3.12911226,136.57,136.52,3.17571278]
[1764088253391,3.08,136.56,136.52,0.05571278]
[1764088253885,3.08,136.55,136.52,0.05571278]
[1764088258200,3.12911226,136.57,136.52,3.17571278]
[1764088259286,3.12911226,136.57,136.53,9.7656]
[1764088259485,0.04911226,136.57,136.54,3.17]
[1764088259791,3.22911226,136.57,136.52,0.05571278]
[1764088260095,3.22911226,136.57,136.52,3.22571278]
[1764088260295,9.82291226,136.57,136.52,0.05571278]
[1764088260494,3.18,136.56,136.52,0.05571278]
[1764088260894,3.18,136.54,136.52,0.05571278]
[1764088261301,3.18,136.54,136.46,3.17]
[1764088261503,3.18,136.5,136.43,28.57]
[1764088261898,3.18,136.49,136.43,3.17]
[1764088262090,102.5808,136.56,136.43,3.17]
[1764088262304,3.23057058,136.51,136.48,0.05245508]
[1764088263790,105.85087058,136.51,136.48,0.05245508]
[1764088264006,3.18,136.5,136.48,0.05245508]
[1764088264206,3.18,136.48,136.39,3.17]
[1764088264702,3.18,136.48,136.4,3.17]
[1764088265203,0.05075946,136.45,136.43,0.04653451]
[1764088266002,0.05075946,136.45,136.43,3.21653451]
[1764088268997,3.18,136.52,136.43,3.21653451]
[1764088269202,3.18,136.52,136.44,3.17]
[1764088269512,3.18,136.48,136.44,3.17]
[1764088269900,102.6029,136.53,136.44,3.17]
[1764088269901,3.18,136.53,136.44,3.17]
[1764088270103,0.05594474,136.5,136.47,0.0558165]
[1764088270999,3.23594474,136.5,136.47,0.0558165]
[1764088271205,0.05594474,136.5,136.47,3.2258165]
[1764088271410,3.23594474,136.5,136.47,0.0558165]
[1764088271607,0.05594474,136.5,136.47,3.2258165]
[1764088271908,3.23594474,136.5,136.47,0.0558165]
[1764088273099,3.18,136.48,136.47,0.0558165]
[1764088275101,0.05594474,136.5,136.47,0.0558165]
[1764088275306,0.05594474,136.5,136.47,3.2258165]
[1764088276208,6.65314474,136.5,136.47,3.2258165]
[1764088276399,0.05594474,136.5,136.47,3.2258165]
[1764088277112,6.65334474,136.5,136.47,3.2258165]
[1764088277320,0.05594474,136.5,136.47,3.2258165]
[1764088278313,6.5977,136.49,136.47,3.2258165]
[1764088278616,0.05594474,136.5,136.47,3.2258165]
[1764088280410,0.05594474,136.5,136.47,3.1158165]
[1764088280715,6.65324474,136.5,136.47,3.1158165]
[1764088281906,0.05594474,136.5,136.47,3.1158165]
[1764088286113,3.08594474,136.5,136.47,0.0558165]
[1764088286416,3.03,136.48,136.47,0.0558165]
[1764088287014,3.08594474,136.5,136.47,0.0558165]
[1764088287620,3.03,136.49,136.47,0.0558165]
[1764088290024,3.03,136.48,136.47,0.0558165]
[1764088290220,3.03,136.48,136.39,21.52178754]
[1764088290423,9.6299,136.45,136.38,3.06]
[1764088290624,3.03,136.49,136.39,3.06]
[1764088291128,3.03,136.49,136.42,3.06]
[1764088291429,0.04924751,136.45,136.43,3.11224076]
[1764088292234,0.04924751,136.45,136.44,3.06]
[1764088293632,3.03,136.49,136.43,0.05224076]
[1764088294027,9.6282,136.48,136.43,3.11224076]
[1764088294227,3.03,136.47,136.43,3.11224076]
[1764088294733,0.05538537,136.46,136.43,3.11224076]
[1764088295337,3.08538537,136.46,136.43,0.05224076]
[1764088296043,3.08538537,136.46,136.43,3.11224076]
[1764088296226,3.08538537,136.46,136.43,0.05224076]
[1764088297335,9.68448537,136.46,136.43,0.05224076]
[1764088297732,3.08538537,136.46,136.43,0.05224076]
[1764088298334,9.68448537,136.46,136.43,0.05224076]
[1764088299341,3.03,136.44,136.43,0.05224076]
[1764088300133,3.08538537,136.46,136.43,0.05224076]
[1764088300538,3.03,136.45,136.43,0.05224076]
[1764088300848,3.03,136.44,136.43,0.05224076]
[1764088301032,3.03,136.43,136.37,40.25897643]
[1764088301341,9.6306,136.43,136.38,3.06]
[1764088301640,9.6306,136.43,136.39,3.06]
[1764088302040,102.6554,136.46,136.4,3.11151568]
[1764088302041,0.04745251,136.42,136.4,3.11151568]
[1764088302244,3.03,136.46,136.4,3.11151568]
[1764088302439,3.03,136.46,136.41,3.06]
[1764088302740,3.03,136.49,136.41,3.06]
[1764088303437,0.05037414,136.46,136.44,0.05527919]
[1764088303639,3.08037414,136.46,136.44,0.05527919]
[1764088304743,9.67967414,136.46,136.44,0.05527919]
[1764088305042,3.03,136.45,136.44,0.05527919]
[1764088306440,6.64967414,136.46,136.44,0.05527919]
[1764088306646,9.67967414,136.46,136.44,0.05527919]
[1764088307042,2.9,136.45,136.44,0.05527919]
[1764088310046,2.9,136.44,136.38,3.06]
[1764088311047,0.04978345,136.42,136.4,0.05036381]
[1764088311345,0.04978345,136.42,136.4,3.11036381]
[1764088312850,0.04978345,136.42,136.41,3.06]
[1764088317656,0.04978345,136.42,136.41,65.06]
[1764088318357,2.9,136.49,136.42,3.06]
[1764088318749,2.9,136.49,136.44,3.03]
[1764088319152,3.1,136.52,136.44,3.03]
[1764088319355,0.05169189,136.49,136.48,3.03]
[1764088320351,3.1,136.55,136.49,3.03]
[1764088321254,6.5948,136.55,136.49,3.03]
[1764088321555,0.0550492,136.53,136.51,0.04787876]
[1764088321757,0.04894167,136.53,136.51,3.07787876]
[1764088321955,3.1,136.59,136.53,6.5956]
[1764088322149,3.1,136.63,136.54,3.03]
[1764088322354,3.1,136.63,136.62,0.00430149]
[1764088322551,3.1,136.62,136.56,2.70075049]
[1764088322955,0.05123068,136.6,136.58,0.04941827]
[1764088323160,3.15123068,136.6,136.58,0.04941827]
[1764088323357,0.05123068,136.6,136.58,0.04941827]
[1764088323763,3.15123068,136.6,136.58,0.04941827]
[1764088325161,0.05123068,136.6,136.58,0.04941827]
[1764088325861,3.15123068,136.6,136.5,3.03]
[1764088326058,3.1,136.59,136.5,3.03]
[1764088326765,102.5429,136.61,136.5,3.03]
[1764088326766,9.6934,136.58,136.51,3.03]
[1764088326961,3.1496234,136.57,136.54,0.05153128]
[1764088327358,0.0496234,136.57,136.55,3.03]
[1764088333466,3.1496234,136.57,136.54,0.05153128]
[1764088333673,105.7228234,136.57,136.54,0.05153128]
[1764088333864,9.6943,136.56,136.54,0.05153128]
[1764088334070,3.1,136.55,136.54,0.05153128]
[1764088334374,3.1496234,136.57,136.54,0.05153128]
[1764088335564,3.1,136.55,136.54,0.05153128]
[1764088335767,3.1,136.55,136.48,3.03]
[1764088336170,6.5953,136.54,136.48,3.03]
[1764088336569,6.5953,136.54,136.49,3.03]
[1764088336767,6.64929084,136.53,136.5,3.07996491]
[1764088337476,0.05349084,136.53,136.5,3.07996491]
[1764088341976,2.96,136.6,136.5,3.07996491]
[1764088342176,2.96,136.6,136.49,109.05868639]
[1764088342177,9.5524,136.6,136.53,3.11]
[1764088342772,2.96,136.6,136.55,3.11]
[1764088342972,0.04863222,136.58,136.55,3.16281554]
[1764088345379,0.04863222,136.58,136.57,3.11]
[1764088346077,2.96,136.63,136.58,3.11]
[1764088347073,0.04795795,136.62,136.59,3.16166579]
[1764088347278,3.00795795,136.62,136.59,3.16166579]
[1764088347478,3.00795795,136.62,136.59,0.05166579]
[1764088348183,0.04795795,136.62,136.59,3.16166579]
[1764088348378,3.00795795,136.62,136.59,0.05166579]
[1764088349479,0.04795795,136.62,136.59,3.16166579]
[1764088350476,3.00795795,136.62,136.59,0.05166579]
[1764088352391,2.96,136.61,136.59,0.05166579]
[1764088353287,6.63935795,136.62,136.59,3.16166579]
[1764088354197,0.04795795,136.62,136.59,3.16166579]
[1764088357089,2.96,136.69,136.61,3.11]
[1764088357594,9.549,136.67,136.61,3.11]
[1764088357788,2.96,136.67,136.61,3.11]
[1764088357987,0.0343293,136.65,136.64,3.11]
[1764088358585,104.95568355,136.7,136.64,3.11]
[1764088358586,2.47948355,136.7,136.64,3.11]
[1764088359398,9.06698355,136.7,136.64,3.11]
[1764088359799,2.47948355,136.7,136.64,3.11]
[1764088360093,2.47948355,136.7,136.64,6.5901]
[1764088360295,2.96,136.69,136.65,3.11]
[1764088360491,2.47948355,136.7,136.66,3.16254112]
[1764088360690,2.47948355,136.7,136.67,3.11]
[1764088362290,105.3733,136.78,136.69,3.11]
[1764088362597,105.3733,136.78,136.72,0.04815901]
[1764088362598,2.96,136.73,136.72,0.04815901]
[1764088363187,2.96,136.76,136.72,0.04815901]
[1764088363500,2.96,136.75,136.72,0.04815901]
[1764088363799,2.96,136.76,136.72,0.04815901]
[1764088365297,2.96,136.76,136.72,3.15815901]
[1764088366094,2.96,136.8,136.72,3.15815901]
[1764088369088,2.96,136.8,136.73,3.02]
[1764088369295,2.96,136.8,136.75,0.04775531]
[1764088370700,3.09,136.78,136.75,0.04775531]
[1764088371004,3.09,136.78,136.75,0.05324572]
[1764088371300,3.09,136.78,136.75,3.07324572]
[1764088371498,3.09,136.79,136.75,0.05324572]
[1764088373198,3.09,136.82,136.75,0.05324572]